bitfinex-derivatives/quotes_ETHF0:USTF0_20240913
["timestamp","ask_amount","ask_price","bid_price","bid_amount"]
[1726265937423,0.40767,2451.6,2451.4,0.09210002]
[1726265938423,0.40766,2451.7,2451.4,0.09210002]
[1726265938626,3.2078,2451.9,2451.4,0.09210002]
[1726265938827,0.40766,2451.7,2451.4,0.09210002]
[1726265940018,0.40764,2451.8,2451.4,0.09210002]
[1726265940329,0.40765,2451.7,2451.4,0.09210002]
[1726265940626,0.40764,2451.8,2451.4,0.09210002]
[1726265940820,7.3258,2452.2,2451.4,0.09210002]
[1726265941026,0.4076,2452.0,2451.5,0.40767]
[1726265941232,0.4076,2452.0,2451.5,0.89807]
[1726265941725,0.4076,2452.0,2451.5,0.4904]
[1726265941929,0.4076,2452.0,2451.6,0.40767]
[1726265942124,3.2078,2452.2,2451.7,0.40764]
[1726265942318,3.2078,2452.2,2451.6,3.2078]
[1726265942525,0.40759,2452.1,2451.7,0.40765]
[1726265942722,3.61538,2452.2,2451.7,0.40765]
[1726265943123,3.2078,2452.2,2451.6,3.61546]
[1726265943433,0.40764,2451.8,2451.6,3.2078]
[1726265943625,3.2078,2452.2,2451.4,0.49980002]
[1726265943626,0.40767,2451.6,2451.4,0.09210002]
[1726265943924,0.40761,2452.0,2451.6,0.40766]
[1726265944125,7.3258,2452.2,2451.5,0.40767]
[1726265944321,3.2078,2452.2,2451.4,0.09210002]
[1726265944530,3.4128,2452.6,2452.0,3.2078]
[1726265944723,3.61531,2452.6,2452.1,0.5161]
[1726265944919,3.2078,2452.6,2452.1,0.5161]
[1726265945131,3.61531,2452.6,2452.1,0.5161]
[1726265945330,3.61531,2452.6,2452.1,0.92368]
[1726265945630,3.2078,2452.6,2452.1,0.92368]
[1726265945831,0.40753,2452.5,2452.1,0.5161]
[1726265946034,3.2078,2452.6,2452.1,0.5161]
[1726265946223,3.61531,2452.6,2452.1,0.5161]
[1726265946424,3.2078,2452.6,2452.1,0.5161]
[1726265946628,0.40753,2452.5,2452.1,0.5161]
[1726265947034,3.61531,2452.6,2452.1,0.5161]
[1726265947235,3.2078,2452.6,2452.2,0.40757]
[1726265947436,3.2078,2452.6,2452.1,0.5161]
[1726265947634,3.2078,2452.6,2452.2,0.40756]
[1726265948031,4.118,2452.8,2452.3,3.2078]
[1726265948227,4.118,2452.8,2452.4,0.40753]
[1726265948431,4.118,2452.8,2452.3,3.61534]
[1726265948629,1.01847,2453.3,2452.3,3.61534]
[1726265948630,3.4439665,2453.7,2452.3,9.2078]
[1726265948852,3.2078,2455.5,2454.2,0.40724]
[1726265949030,0.4082,2457.0,2454.7,3.2078]
[1726265949031,3.2078,2455.2,2454.7,3.2078]
[1726265949226,3.2078,2455.2,2454.3,0.992]
[1726265949227,3.2078,2455.2,2454.6,3.2078]
[1726265949427,3.2078,2455.2,2454.3,0.992]
[1726265949428,2.60180002,2455.2,2454.8,0.40712]
[1726265949734,2.60180002,2455.2,2454.3,8.2734]
[1726265949735,3.2078,2455.0,2454.3,4.1998]
[1726265949927,3.2078,2454.7,2454.3,4.1998]
[1726265950329,3.2078,2455.0,2454.3,4.1998]
[1726265951531,0.4723,2455.2,2454.3,4.1998]
[1726265953335,0.4723,2455.2,2454.6,3.2078]
[1726265954639,3.2078,2455.7,2454.9,3.2078]
[1726265955144,3.2078,2455.4,2454.9,3.2078]
[1726265955448,3.2078,2455.7,2454.9,3.2078]
[1726265956137,3.2078,2456.1,2455.2,3.2078]
[1726265956339,3.2078,2455.8,2455.2,3.2078]
[1726265958348,3.2078,2455.8,2455.3,4.0728]
[1726265958639,0.205,2456.4,2455.5,3.2078]
[1726265958840,4.118,2457.6,2455.9,3.2078]
[1726265958841,3.2078,2456.6,2455.9,3.2078]
[1726265959147,3.2078,2456.9,2455.9,3.2078]
[1726265959354,3.2078,2456.9,2455.9,3.61474]
[1726265959553,3.2078,2456.9,2455.9,3.2078]
[1726265959749,3.2078,2456.6,2455.9,3.2078]
[1726265960240,3.2078,2457.0,2455.9,3.2078]
[1726265960440,3.2078,2456.7,2455.9,3.2078]
[1726265961051,3.2078,2457.0,2456.2,3.2078]
[1726265961437,3.61458,2457.0,2456.2,3.2078]
[1726265961636,3.2078,2456.7,2456.2,3.2078]
[1726265962440,3.2078,2456.4,2455.9,3.2078]
[1726265962949,3.2078,2456.1,2455.5,3.2078]
[1726265963149,3.2078,2456.1,2455.1,3.2078]
[1726265963541,0.40695,2456.0,2455.1,3.2078]
[1726265964548,3.2078,2455.8,2454.8,3.5846]
[1726265964754,0.4028,2455.9,2454.5,3.6148]
[1726265964755,3.2078,2455.4,2454.5,3.6148]
[1726265965051,3.2078,2455.6,2454.8,3.2078]
[1726265965347,3.61481,2455.6,2454.8,3.2078]
[1726265966048,0.40701,2455.6,2454.8,3.2078]
[1726265966247,3.61482,2455.6,2454.8,3.2078]
[1726265966750,3.61482,2455.6,2455.1,3.2078]
[1726265967951,3.2078,2455.6,2454.7,3.2078]
[1726265968451,3.61485,2455.3,2454.7,3.2078]
[1726265968753,3.2078,2455.3,2454.7,3.2078]
[1726265969149,3.2078,2455.3,2454.7,3.61494]
[1726265969354,0.40703,2455.5,2454.7,3.61494]
[1726265969552,0.40704,2455.4,2454.7,3.2078]
[1726265970066,0.40704,2455.4,2454.3,0.4049]
[1726265970067,3.2078,2454.9,2453.4,0.23155811]
[1726265970348,3.2078,2454.5,2453.4,3.2078]
[1726265970650,3.2078,2454.5,2453.8,0.40729]
[1726265970853,3.2078,2454.5,2453.6,3.2078]
[1726265971050,3.2078,2454.5,2453.9,0.40727]
[1726265971548,3.2078,2454.5,2453.8,0.40729]
[1726265971748,3.61499,2454.5,2453.8,0.40729]
[1726265972257,3.2078,2454.5,2453.8,0.40729]
[1726265972648,3.61499,2454.5,2453.8,0.40729]
[1726265972848,0.40721,2454.4,2453.6,3.61512]
[1726265973157,3.2078,2454.5,2453.9,3.2078]
[1726265973360,3.2078,2454.5,2454.2,0.40723]
[1726265973945,0.80004,2454.8,2454.2,3.2078]
[1726265973946,0.3929,2454.8,2454.2,3.2078]
[1726265974152,3.2078,2454.7,2454.0,0.3972]
[1726265974760,3.61496,2454.7,2454.1,0.40724]
[1726265975158,0.40716,2454.7,2454.1,0.40724]
[1726265975652,0.80005,2454.8,2454.2,0.40724]
[1726265975861,0.3929,2454.8,2454.2,0.40723]
[1726265976052,0.80005,2454.8,2454.2,0.40723]
[1726265976259,3.5984,2455.0,2454.5,0.40717]
[1726265976260,3.2078,2455.0,2454.5,0.40717]
[1726265976763,3.2078,2455.0,2454.6,0.40717]
[1726265977259,0.40713,2454.9,2454.2,3.2078]
[1726265977456,3.2078,2455.0,2454.2,3.2078]
[1726265977649,0.40713,2454.9,2454.3,0.40721]
[1726265978361,0.40715,2454.8,2454.2,3.61503]
[1726265978555,0.40714,2454.8,2454.2,3.61503]
[1726265979352,3.2078,2455.0,2454.3,0.40721]
[1726265979353,0.40713,2454.9,2454.3,0.40721]
[1726265979662,0.40714,2454.8,2454.2,3.61503]
[1726265979965,0.79382,2454.9,2454.3,0.40722]
[1726265980354,0.79382,2454.9,2454.3,0.40721]
[1726265980560,0.40714,2454.8,2454.3,0.40721]
[1726265980758,0.3867,2454.9,2454.3,0.40721]
[1726265981064,0.40714,2454.8,2454.3,0.40721]
[1726265981562,0.40699,2455.7,2454.7,4.22566]
[1726265981753,3.2078,2456.0,2454.5,1.01797]
[1726265981754,3.4128,2456.0,2455.3,3.61484]
[1726265981956,3.2078,2456.0,2455.0,3.2078]
[1726265982161,1.01739,2455.9,2455.0,3.2078]
[1726265982652,0.40701,2455.6,2455.1,0.40708]
[1726265983161,3.2078,2455.7,2455.1,0.40708]
[1726265983553,3.2078,2455.7,2455.0,3.61489]
[1726265983761,4.22532,2455.6,2454.8,0.78063]
[1726265983962,4.22532,2455.6,2455.0,3.2078]
[1726265983963,3.2078,2455.6,2455.0,3.2078]
[1726265984162,3.61482,2455.6,2455.0,3.2078]
[1726265984557,0.40702,2455.5,2455.0,3.2078]
[1726265984857,3.61481,2455.6,2455.0,3.2078]
[1726265985065,0.40703,2455.5,2455.0,3.2078]
[1726265985264,0.40702,2455.5,2455.0,3.2078]
[1726265985460,3.2078,2455.6,2455.0,3.2078]
[1726265985667,0.80483,2455.5,2455.0,3.6149]
[1726265986059,3.2078,2455.6,2455.0,3.2078]
[1726265986266,3.2078,2455.6,2455.1,0.417]
[1726265986462,3.2078,2455.6,2455.3,0.40705]
[1726265986658,3.2078,2455.6,2455.1,0.417]
[1726265986964,3.2078,2455.6,2455.3,0.40705]
[1726265987771,3.2078,2455.6,2455.4,0.40704]
[1726265988870,3.61482,2455.6,2455.1,0.82408]
[1726265989067,3.61482,2455.6,2454.8,4.4835]
[1726265989068,3.2078,2455.6,2454.8,4.4835]
[1726265989268,0.40705,2455.4,2455.0,0.40709]
[1726265989462,3.2078,2455.6,2455.0,0.40709]
[1726265989861,0.40704,2455.4,2455.0,0.40709]
[1726265990066,0.40703,2455.5,2455.1,0.40709]
[1726265990268,0.40704,2455.4,2455.0,0.40709]
[1726265990671,0.40706,2455.3,2454.9,0.40711]
[1726265991063,0.40704,2455.4,2455.0,0.4071]
[1726265991268,3.61481,2455.6,2455.2,0.40707]
[1726265991463,0.40704,2455.4,2455.0,0.40709]
[1726265991880,3.61481,2455.6,2455.2,0.40707]
[1726265992178,3.2078,2455.6,2455.3,0.40704]
[1726265992678,3.2078,2455.6,2455.0,3.2078]
[1726265992974,3.2078,2455.6,2455.3,0.40704]
[1726265993376,3.2078,2455.6,2455.0,3.2078]
[1726265993671,3.2078,2455.6,2455.4,0.40703]
[1726265993879,3.2078,2455.6,2455.5,0.40702]
[1726265995479,3.2078,2455.6,2455.4,0.40703]
[1726265995774,3.2078,2455.6,2455.4,0.40702]
[1726265997291,3.61481,2455.6,2455.2,0.40706]
[1726265997474,3.2078,2455.6,2455.3,0.40704]
[1726265997772,0.3978,2455.9,2455.4,3.2078]
[1726265997981,0.3978,2455.9,2455.7,0.40698]
[1726265998574,0.3978,2455.9,2455.4,3.601]
[1726265998575,0.40698,2455.8,2455.4,3.601]
[1726265998777,0.40697,2455.8,2455.5,0.40701]
[1726265998988,0.40697,2455.8,2455.4,3.61483]
[1726265999776,0.40697,2455.8,2454.6,2.3128057]
[1726265999777,0.4071,2455.0,2454.7,4.77567671]
[1726265999972,0.40709,2455.1,2454.7,3.2078]
[1726266000370,0.40719,2454.5,2454.3,3.2078]
[1726266000574,4.22562,2454.9,2454.3,3.2078]
[1726266000776,0.40717,2454.6,2454.3,3.2078]
[1726266000980,0.40717,2454.6,2454.0,3.2078]
[1726266001273,1.42247,2455.0,2454.6,0.40717]
[1726266001274,0.4047,2455.0,2454.6,0.40717]
[1726266001477,0.7477,2455.3,2454.6,3.2078]
[1726266001670,0.7477,2455.3,2454.8,0.40713]
[1726266002071,0.7477,2455.3,2455.0,0.4071]
[1726266002278,0.7477,2455.3,2455.0,3.6149]
[1726266003177,0.7477,2455.3,2455.0,3.2078]
[1726266003381,0.7477,2455.3,2454.7,0.787]
[1726266003382,0.7477,2455.3,2454.7,3.2078]
[1726266003578,0.40712,2455.0,2454.7,3.2078]
[1726266004081,0.4071,2455.1,2454.7,3.2078]
[1726266004282,3.2078,2455.2,2454.7,3.61494]
[1726266004579,3.2078,2455.2,2454.7,3.61495]
[1726266004775,0.40709,2455.1,2454.7,3.2078]
[1726266005471,0.40711,2455.0,2454.7,3.2078]
[1726266005677,0.40709,2455.1,2454.7,3.2078]
[1726266005978,3.2078,2455.2,2454.7,3.2078]
[1726266006169,3.2078,2455.2,2454.8,0.40713]
[1726266006370,3.61487,2455.2,2454.8,0.3963]
[1726266006679,3.61488,2455.2,2454.8,0.3963]
[1726266007181,3.9555,2455.3,2454.7,3.2078]
[1726266007370,1.01768,2455.2,2454.7,3.2078]
[1726266007573,0.40714,2454.8,2454.7,3.2078]
[1726266007771,0.40715,2454.7,2454.3,0.3963]
[1726266008578,3.5926,2455.1,2454.3,0.3963]
[1726266008773,0.40712,2454.9,2454.4,0.40719]
[1726266008976,0.40712,2454.9,2454.3,0.3963]
[1726266008977,3.2078,2455.1,2454.5,3.2078]
[1726266009180,3.61489,2455.1,2454.6,0.40717]
[1726266009484,3.2078,2455.1,2454.5,3.2078]
[1726266009780,3.2078,2455.1,2454.9,0.40711]
[1726266010177,3.2078,2455.1,2454.5,3.2078]
[1726266010377,3.2078,2455.1,2454.9,0.40711]
[1726266011281,3.2078,2455.1,2454.8,0.40713]
[1726266011674,3.61489,2455.1,2454.8,0.40713]
[1726266011875,0.40712,2455.0,2454.5,3.2078]
[1726266012079,3.2078,2455.1,2454.9,0.40711]
[1726266012876,3.2078,2455.1,2455.0,0.4071]
[1726266013082,1.15476,2455.3,2454.8,3.2078]
[1726266013276,1.15476,2455.3,2454.9,0.3782]
[1726266013882,0.40708,2455.2,2454.9,0.3782]
[1726266014083,1.15476,2455.3,2454.9,0.78531]
[1726266014476,0.40707,2455.2,2454.9,0.78531]
[1726266015084,1.15476,2455.3,2455.0,0.4071]
[1726266015484,0.7477,2455.3,2455.0,0.4071]
[1726266015788,1.15476,2455.3,2455.0,0.4071]
[1726266015986,0.7477,2455.3,2455.1,0.40708]
[1726266016178,0.7477,2455.3,2454.9,0.3782]
[1726266016179,1.15476,2455.3,2455.0,0.40709]
[1726266016382,0.7477,2455.3,2455.0,0.40709]
[1726266016593,1.15476,2455.3,2455.0,0.40709]
[1726266017284,0.7477,2455.3,2455.0,0.40709]
[1726266017491,3.2078,2455.7,2455.2,0.40706]
[1726266017789,0.40702,2455.5,2455.2,0.40706]
[1726266018085,0.40702,2455.5,2454.9,0.7777]
[1726266018086,3.2078,2455.7,2455.1,3.2078]
[1726266018787,3.2078,2455.7,2455.5,0.40702]
[1726266019280,0.3802,2455.8,2455.1,3.2078]
[1726266019492,0.3802,2455.8,2455.6,0.40699]
[1726266019986,0.78717,2455.8,2455.5,0.40701]
[1726266020387,0.3802,2455.8,2455.1,5.15937671]
[1726266020577,0.3802,2455.8,2455.5,0.40701]
[1726266020784,0.3802,2455.8,2455.4,0.40703]
[1726266020785,0.40699,2455.7,2455.4,0.40703]
[1726266020981,0.40699,2455.7,2455.1,5.15937671]
[1726266020982,0.78718,2455.8,2455.1,5.15937671]
[1726266021186,0.40703,2455.5,2455.1,4.77567671]
[1726266021483,0.3802,2455.8,2455.3,0.40705]
[1726266021484,0.40701,2455.6,2455.3,0.40705]
[1726266021687,0.3802,2455.8,2455.2,0.40706]
[1726266021886,3.2078,2455.7,2455.1,0.40707]
[1726266022082,0.40705,2455.4,2455.0,4.51709]
[1726266022384,3.2078,2455.7,2455.0,4.11]
[1726266022587,0.40707,2455.3,2455.0,4.11]
[1726266022795,1.01756,2455.5,2454.8,3.2078]
[1726266022796,0.3825,2455.2,2454.8,3.2078]
[1726266023086,0.78958,2455.2,2454.8,3.61493]
[1726266023287,0.3825,2455.2,2454.9,0.40711]
[1726266023593,1.01772,2455.1,2454.4,1.56787671]
[1726266023886,1.01772,2455.1,2454.5,0.40718]
[1726266024086,0.40713,2454.9,2454.5,0.40718]
[1726266024483,4.608,2455.2,2454.4,1.56787671]
[1726266024689,0.40718,2454.6,2454.3,3.2078]
[1726266025793,0.40714,2454.8,2454.3,3.61501]
[1726266026682,4.118,2455.1,2454.3,3.2078]
[1726266026884,3.5903,2455.2,2454.4,1.18319]
[1726266027487,0.40712,2454.9,2454.4,1.18319]
[1726266027889,0.4071,2455.1,2454.5,0.40717]
[1726266028085,3.5903,2455.2,2454.4,0.776]
[1726266028289,0.40712,2454.9,2454.4,1.18319]
[1726266029491,0.40709,2455.1,2454.5,0.40718]
[1726266029694,0.40712,2454.9,2454.4,1.18319]
[1726266029998,0.40712,2454.9,2454.5,0.40719]
[1726266030390,0.40712,2454.9,2454.4,1.18319]
[1726266030700,0.40714,2454.8,2454.4,1.18319]
[1726266030890,0.40714,2454.8,2454.4,0.776]
[1726266031087,0.40713,2454.9,2454.5,0.40718]
[1726266031392,3.5903,2455.2,2454.4,0.3827]
[1726266031586,1.01772,2455.1,2454.4,0.3827]
[1726266031787,0.40709,2455.1,2454.6,3.2078]
[1726266031998,0.40709,2455.1,2454.4,0.3827]
[1726266031999,0.40712,2455.0,2454.5,0.40718]
[1726266032294,0.40713,2454.9,2454.4,2.35776671]
[1726266032495,0.40713,2454.9,2454.5,0.40719]
[1726266032799,3.5903,2455.2,2454.3,5.18288671]
[1726266032800,1.01776,2455.0,2454.3,5.18288671]
[1726266032998,1.01772,2455.1,2454.3,4.77567671]
[1726266033291,3.2078,2454.9,2454.3,3.2078]
[1726266033493,0.40717,2454.6,2454.3,3.2078]
[1726266033697,3.2078,2454.9,2454.3,3.2078]
[1726266033909,0.40716,2454.7,2454.3,3.2078]
[1726266034207,0.40717,2454.6,2454.3,3.2078]
[1726266034399,0.40716,2454.7,2454.3,3.2078]
[1726266034610,0.40716,2454.7,2454.3,3.61502]
[1726266034811,0.40716,2454.7,2454.3,3.2078]
[1726266034991,0.40716,2454.7,2454.3,3.61502]
[1726266035196,0.40712,2454.9,2454.5,0.40718]
[1726266035899,0.40712,2454.9,2454.3,3.2078]
[1726266035900,3.61491,2455.0,2454.6,0.40717]
[1726266036107,3.2078,2455.0,2454.4,0.40719]
[1726266036306,0.40714,2454.8,2454.4,0.4072]
[1726266037501,0.40716,2454.7,2454.3,3.61501]
[1726266037699,1.17596,2454.7,2454.3,3.61502]
[1726266037902,0.40719,2454.5,2454.3,3.2078]
[1726266038507,0.4072,2454.4,2454.3,3.2078]
[1726266039401,0.7688,2454.7,2454.3,3.61501]
[1726266039605,1.17597,2454.7,2454.3,3.2078]
[1726266039804,0.40717,2454.6,2454.3,3.2078]
[1726266040202,0.40719,2454.5,2454.3,3.2078]
[1726266040793,0.4072,2454.4,2454.0,5.94163671]
[1726266041103,0.4072,2454.4,2454.0,4.00357]
[1726266041700,0.40723,2454.3,2454.0,3.2078]
[1726266042201,3.99688,2454.6,2454.1,0.40724]
[1726266042403,0.40718,2454.6,2454.1,0.40724]
[1726266042706,0.40718,2454.6,2454.1,0.40725]
[1726266042904,1.17596,2454.7,2454.2,0.40722]
[1726266043091,1.17596,2454.7,2454.3,0.79602]
[1726266043295,0.40717,2454.6,2454.3,0.3888]
[1726266044210,3.99681,2455.0,2454.3,0.3888]
[1726266044503,0.40713,2454.9,2454.5,0.40718]
[1726266045705,0.40713,2454.9,2454.5,1.46828648]
[1726266045908,1.01768,2455.2,2454.4,5.07259648]
[1726266046094,1.01768,2455.2,2454.4,3.2078]
[1726266046095,0.40716,2454.7,2454.4,3.2078]
[1726266046499,0.40715,2454.8,2454.4,3.2078]
[1726266046806,1.38912,2454.9,2454.4,3.2078]
[1726266047000,0.80837,2454.7,2454.4,3.2078]
[1726266047199,0.4012,2454.7,2454.4,3.2078]
[1726266047403,0.80836,2454.7,2454.4,3.2078]
[1726266047903,0.40718,2454.6,2454.4,3.2078]
[1726266048899,0.80836,2454.7,2454.4,3.2078]
[1726266049108,0.40714,2454.9,2454.4,3.2078]
[1726266049408,0.40714,2454.9,2454.5,0.3901]
[1726266049598,3.2078,2455.0,2454.4,3.2078]
[1726266049599,4.22558,2455.0,2454.4,3.2078]
[1726266049811,0.3883,2454.9,2454.4,3.2078]
[1726266050206,0.40716,2454.7,2454.4,3.2078]
[1726266050510,0.3883,2454.9,2454.4,3.2078]
[1726266051005,0.40714,2454.8,2454.4,3.2078]
[1726266051902,0.40712,2454.9,2454.5,0.40718]
[1726266052107,3.61491,2455.0,2454.5,0.40718]
[1726266052304,0.40712,2454.9,2454.5,0.40718]
[1726266052707,3.61491,2455.0,2454.6,0.3974]
[1726266053314,3.2078,2455.0,2454.6,0.3974]
[1726266053818,3.61491,2455.0,2454.6,0.3974]
[1726266054313,3.2078,2455.0,2454.6,0.3974]
[1726266054513,0.3781,2455.1,2454.6,1.45850648]
[1726266054698,0.3781,2455.1,2454.8,0.40712]
[1726266055714,0.3781,2455.1,2454.8,0.40713]
[1726266057406,3.6115,2455.3,2454.7,3.2078]
[1726266057613,0.3764,2455.7,2455.4,0.40703]
[1726266057811,0.3764,2455.7,2455.1,1.06110648]
[1726266058006,0.78339,2455.7,2455.2,0.378]
[1726266058207,0.3764,2455.7,2455.3,0.40704]
[1726266059116,0.3764,2455.7,2455.2,1.43910648]
[1726266059416,3.2078,2455.9,2455.2,1.43910648]
[1726266059614,3.2078,2455.9,2455.6,0.407]
[1726266060314,3.2078,2455.9,2455.5,0.40701]
[1726266060614,3.2078,2455.9,2455.3,4.26890648]
[1726266060615,3.2078,2455.9,2455.4,1.06110648]
[1726266060815,3.61476,2455.9,2455.4,0.40703]
[1726266061017,3.61476,2455.9,2455.4,3.61483]
[1726266061224,3.2078,2455.9,2455.4,3.2078]
[1726266061425,3.2078,2455.9,2455.6,0.407]
[1726266061715,3.2078,2455.9,2455.4,3.2078]
[1726266062018,3.2078,2455.9,2455.4,3.61482]
[1726266062213,3.2078,2455.9,2455.4,3.61483]
[1726266062607,3.2078,2455.9,2455.5,0.40701]
[1726266062815,3.2078,2455.9,2455.4,4.67593648]
[1726266063021,3.2078,2455.9,2455.5,0.40702]
[1726266063325,0.205,2456.5,2455.9,0.40695]
[1726266063520,0.40686,2456.5,2455.7,3.2078]
[1726266063819,0.40686,2456.5,2455.6,2.23049648]
[1726266063820,3.2078,2455.8,2455.6,1.06110648]
[1726266064022,0.3834,2455.7,2455.2,1.83710648]
[1726266064516,0.3834,2455.7,2455.2,2.24416648]
[1726266064730,0.3834,2455.7,2455.1,4.26890648]
[1726266064731,3.5912,2455.7,2455.1,4.26890648]
[1726266064909,0.7835,2455.6,2455.1,3.2078]
[1726266065519,0.3834,2455.7,2455.2,0.40706]
[1726266065716,0.3834,2455.7,2455.3,0.4054]
[1726266065913,3.5912,2455.7,2455.1,4.26890648]
[1726266066118,0.3862,2455.6,2455.1,3.2078]
[1726266066827,0.3881,2455.5,2455.1,3.2078]
[1726266067224,0.3862,2455.6,2455.1,3.2078]
[1726266068126,3.61483,2455.5,2455.1,3.2078]
[1726266068319,0.3862,2455.6,2455.1,3.61488]
[1726266068521,0.3862,2455.6,2455.1,4.26890648]
[1726266068819,0.3862,2455.6,2455.1,3.2078]
[1726266069227,0.3862,2455.6,2455.1,3.61488]
[1726266069519,0.3834,2455.7,2455.2,0.40706]
[1726266069725,0.3834,2455.7,2455.1,4.67598648]
[1726266069921,0.3834,2455.7,2455.2,0.40706]
[1726266070315,0.3998,2456.0,2455.4,0.40703]
[1726266070514,4.118,2456.1,2455.6,0.407]
[1726266070720,0.3903,2456.3,2455.6,0.407]
[1726266070915,0.79719,2456.3,2455.5,1.83781648]
[1726266071116,0.79719,2456.3,2455.5,1.43080648]
[1726266071321,0.3903,2456.3,2455.5,1.43080648]
[1726266071517,3.5981,2456.3,2455.5,0.3697]
[1726266071723,0.40691,2456.2,2455.5,0.77672]
[1726266071919,4.00499,2456.3,2455.6,0.40699]
[1726266072123,3.5981,2456.3,2455.5,1.43080648]
[1726266072425,0.205,2456.9,2455.7,3.2078]
[1726266072626,3.2078,2457.1,2457.0,0.40677]
[1726266072627,0.205,2457.1,2457.0,0.40677]
[1726266072824,0.3966,2457.6,2457.0,6.0]
[1726266073031,0.3966,2457.6,2456.9,0.3818]
[1726266073222,3.2078,2457.5,2456.9,0.3818]
[1726266073630,3.2078,2457.5,2457.0,0.40677]
[1726266073928,3.2078,2457.5,2456.9,0.3818]
[1726266074732,0.3912,2457.4,2456.9,0.3818]
[1726266075121,0.3912,2457.4,2456.4,1.86450648]
[1726266075122,0.40678,2457.0,2456.4,0.3953]
[1726266075424,3.599,2457.4,2456.1,3.2078]
[1726266075735,0.7672,2457.3,2456.1,3.2078]
[1726266076027,0.7672,2457.3,2455.8,3.2078]
[1726266076028,0.40685,2456.6,2455.8,3.2078]
[1726266076229,3.9797,2456.5,2455.8,3.2078]
[1726266076426,0.4097,2456.4,2455.8,3.2078]
[1726266077027,3.2078,2455.9,2455.4,0.3714]
[1726266077233,3.6175,2456.4,2455.6,3.2078]
[1726266077434,0.40692,2456.2,2455.4,0.3714]
[1726266077627,3.2078,2456.1,2455.3,0.4035]
[1726266078025,3.2078,2456.1,2455.6,0.40699]
[1726266078532,3.2078,2456.1,2455.5,0.40702]
[1726266079036,3.2078,2456.1,2455.6,0.40699]
[1726266079333,0.40695,2456.0,2455.0,3.9863]
[1726266079526,3.2078,2456.1,2455.0,3.5792]
[1726266079527,0.77906,2455.9,2455.0,3.5792]
[1726266079843,3.2078,2455.8,2455.0,3.2078]
[1726266080030,0.3943,2455.7,2455.0,3.2078]
[1726266080219,3.2078,2455.5,2455.0,3.2078]
[1726266080423,3.2078,2455.5,2454.9,3.2078]
[1726266080823,3.2078,2455.5,2454.5,0.3793]
[1726266081128,0.40709,2455.1,2454.1,3.2078]
[1726266081322,0.7487,2455.0,2454.1,3.2078]
[1726266081626,0.7487,2455.0,2454.2,0.40724]
[1726266081834,0.7487,2455.0,2454.1,3.2078]
[1726266082030,0.7487,2455.0,2454.2,0.40722]
[1726266082235,0.7487,2455.0,2454.1,3.2078]
[1726266082534,0.3816,2454.9,2454.2,0.40723]
[1726266082736,0.3816,2454.9,2454.1,3.61505]
[1726266083033,0.3816,2454.9,2454.2,0.40723]
[1726266083629,0.3816,2454.9,2454.4,3.615]
[1726266083835,0.3766,2455.0,2454.4,3.615]
[1726266084029,0.3766,2455.0,2454.1,3.2078]
[1726266084329,3.2078,2455.2,2454.4,3.2078]
[1726266084643,3.2078,2455.2,2454.5,1.18627]
[1726266084829,3.2078,2455.2,2454.5,0.7791]
[1726266085024,0.40709,2455.1,2454.5,0.7791]
[1726266085227,0.40709,2455.1,2454.5,0.382]
[1726266085429,3.2078,2455.2,2454.4,3.2078]
[1726266085430,0.40711,2455.0,2454.4,3.2078]
[1726266085827,0.372,2454.9,2454.4,3.2078]
[1726266086235,3.2078,2454.7,2454.1,3.2078]
[1726266087637,0.40718,2454.6,2453.8,0.3971]
[1726266087835,0.40719,2454.5,2453.7,7.72511]
[1726266088035,0.78398,2454.6,2453.7,3.61511]
[1726266088428,3.61501,2454.4,2453.7,3.2078]
[1726266088637,3.2078,2454.4,2453.7,3.2078]
[1726266088937,0.371,2454.3,2453.7,3.2078]
[1726266089131,0.371,2454.3,2453.7,3.61512]
[1726266089338,0.371,2454.3,2453.7,3.2078]
[1726266089630,0.40724,2454.2,2453.7,3.2078]
[1726266089942,0.371,2454.3,2453.7,3.2078]
[1726266090244,0.77823,2454.3,2453.7,3.2078]
[1726266090432,0.40724,2454.2,2453.7,3.2078]
[1726266090936,0.371,2454.3,2453.7,3.2078]
[1726266091232,0.40726,2454.1,2453.7,3.2078]
[1726266091434,3.5834,2454.2,2453.4,4.11]
[1726266092231,0.40725,2454.1,2453.4,4.11]
[1726266092638,0.40727,2454.1,2453.4,7.3178]
[1726266092941,0.4073,2453.9,2453.4,7.3178]
[1726266093145,0.4073,2453.9,2453.4,3.2078]
[1726266093441,0.4073,2453.8,2453.4,3.2078]
[1726266093846,3.6151,2453.9,2453.4,3.2078]
[1726266094148,3.6151,2453.9,2452.9,4.5151]
[1726266094149,0.40734,2453.6,2452.9,8.13034]
[1726266094445,3.2078,2453.9,2452.9,8.13034]
[1726266094446,0.3893,2453.8,2452.9,4.0053]
[1726266094636,0.3893,2453.8,2453.0,0.40742]
[1726266094637,0.40733,2453.7,2453.0,0.40742]
[1726266094834,0.40733,2453.7,2453.0,0.40743]
[1726266095046,0.40733,2453.7,2452.9,4.0053]
[1726266095047,0.3893,2453.8,2452.9,4.41274]
[1726266095336,0.79823,2453.7,2453.0,0.40743]
[1726266095536,0.3909,2453.7,2453.1,0.40742]
[1726266095744,0.3909,2453.7,2453.0,0.40742]
[1726266096043,0.3909,2453.7,2453.1,0.40742]
[1726266096345,0.3909,2453.7,2453.1,0.40741]